[Event "Titled Tuesday Blitz December 27 Early 2022"]
[White "Cruz, William Ferreira Da"]
[Black "Sanchez, Robert"]
[WhiteFideId "2118050"]
[BlackFideId "2034360"]
[WhiteElo "2216"]
[BlackElo "1966"]
[Result "1-0"]
[Round "10"]
[TimeControl "180+2"]
[Date "2022.12.27"]
[WhiteClock "0:01:50"]
[BlackClock "0:01:38"]

1. d4 {[%clk 0:03:00]}  d5 {[%clk 0:02:59]} 2. c4 {[%clk 0:03:00]}  c6 {[%clk 0:02:59]} 3. Nc3 {[%clk 0:03:00]}  Nf6 {[%clk 0:03:00]} 4. cxd5 {[%clk 0:03:01]}  cxd5 {[%clk 0:03:00]} 5. Bg5 {[%clk 0:03:01]}  Nc6 {[%clk 0:02:59]} 6. e3 {[%clk 0:03:01]}  e6 {[%clk 0:02:58]} 7. Bd3 {[%clk 0:03:01]}  Be7 {[%clk 0:02:58]} 8. Nge2 {[%clk 0:03:01]}  O-O {[%clk 0:02:58]} 9. O-O {[%clk 0:03:02]}  h6 {[%clk 0:02:57]} 10. Bh4 {[%clk 0:03:02]}  Bd7 {[%clk 0:02:57]} 11. Rc1 {[%clk 0:03:01]}  Qb6 {[%clk 0:02:55]} 12. Na4 {[%clk 0:02:57]}  Qa5 {[%clk 0:02:54]} 13. b3 {[%clk 0:02:43]}  Nb4 {[%clk 0:02:51]} 14. Nc5 {[%clk 0:02:40]}  Nxd3 {[%clk 0:02:44]} 15. Qxd3 {[%clk 0:02:37]}  Bb5 {[%clk 0:02:40]} 16. Qc2 {[%clk 0:02:30]}  Rac8 {[%clk 0:02:34]} 17. Qb2 {[%clk 0:02:27]}  b6 {[%clk 0:02:28]} 18. b4 {[%clk 0:02:26]}  Bxe2 {[%clk 0:02:21]} 19. bxa5 {[%clk 0:02:24]}  Bxf1 {[%clk 0:02:22]} 20. Kxf1 {[%clk 0:02:19]}  bxc5 {[%clk 0:02:22]} 21. dxc5 {[%clk 0:02:19]}  g5 {[%clk 0:02:20]} 22. Bg3 {[%clk 0:02:18]}  Ne4 {[%clk 0:02:20]} 23. c6 {[%clk 0:02:14]}  Nd6 {[%clk 0:02:11]} 24. Bxd6 {[%clk 0:02:12]}  Bxd6 {[%clk 0:02:12]} 25. Qb7 {[%clk 0:02:12]}  Rc7 {[%clk 0:02:11]} 26. Qb5 {[%clk 0:02:10]}  Rfc8 {[%clk 0:02:08]} 27. a6 {[%clk 0:02:07]}  Kf8 {[%clk 0:01:57]} 28. h4 {[%clk 0:02:07]}  Ke7 {[%clk 0:01:56]} 29. Ke2 {[%clk 0:02:05]}  f6 {[%clk 0:01:48]} 30. Qd3 {[%clk 0:02:00]}  Rxc6 {[%clk 0:01:40]} 31. Qh7+ {[%clk 0:02:00]}  Ke8 {[%clk 0:01:40]} 32. Rxc6 {[%clk 0:01:58]}  Rxc6 {[%clk 0:01:40]} 33. Qxa7 {[%clk 0:01:55]}  gxh4 {[%clk 0:01:38]} 34. Qb7 {[%clk 0:01:51]}  Rc7 {[%clk 0:01:38]} 35. Qxc7 {[%clk 0:01:50]}  Bxc7 {[%clk 0:01:38]} 36. a7 {[%clk 0:01:50]} 1-0


[Site "https://www.chess.com"]

[Event "Titled Tuesday Blitz December 27 Early 2022"]
[White "De Souza, Cristiano Gomes"]
[Black "Vargas Pereda, Jesus Manue"]
[WhiteFideId "2151758"]
[BlackFideId "5115710"]
[WhiteElo "2018"]
[BlackElo "1851"]
[Result "1-0"]
[Round "10"]
[TimeControl "180+2"]
[Date "2022.12.27"]
[WhiteClock "0:01:21"]
[BlackClock "0:00:21"]

1. d4 {[%clk 0:02:46]}  Nf6 {[%clk 0:02:59]} 2. c4 {[%clk 0:02:39]}  e6 {[%clk 0:02:52]} 3. Nf3 {[%clk 0:02:38]}  c5 {[%clk 0:02:50]} 4. d5 {[%clk 0:02:38]}  exd5 {[%clk 0:02:49]} 5. cxd5 {[%clk 0:02:39]}  d6 {[%clk 0:02:48]} 6. Nc3 {[%clk 0:02:39]}  g6 {[%clk 0:02:47]} 7. h3 {[%clk 0:02:39]}  Bg7 {[%clk 0:02:47]} 8. e4 {[%clk 0:02:39]}  O-O {[%clk 0:02:46]} 9. Bd3 {[%clk 0:02:40]}  b5 {[%clk 0:02:35]} 10. Nxb5 {[%clk 0:02:39]}  Nxe4 {[%clk 0:02:30]} 11. O-O {[%clk 0:02:39]}  Nf6 {[%clk 0:02:25]} 12. Bf4 {[%clk 0:02:38]}  Ne8 {[%clk 0:02:18]} 13. Nc3 {[%clk 0:02:30]}  Nd7 {[%clk 0:02:12]} 14. Re1 {[%clk 0:02:27]}  Ndf6 {[%clk 0:02:06]} 15. a4 {[%clk 0:02:22]}  Bb7 {[%clk 0:02:05]} 16. Bc4 {[%clk 0:02:20]}  a5 {[%clk 0:02:03]} 17. Nb5 {[%clk 0:02:18]}  Ba6 {[%clk 0:01:58]} 18. Ra3 {[%clk 0:02:17]}  Bxb5 {[%clk 0:01:57]} 19. axb5 {[%clk 0:02:16]}  Qb6 {[%clk 0:01:50]} 20. Bd2 {[%clk 0:02:12]}  Nc7 {[%clk 0:01:46]} 21. Qa1 {[%clk 0:02:04]}  Ncxd5 {[%clk 0:01:36]} 22. Bxa5 {[%clk 0:02:02]}  Qb7 {[%clk 0:01:34]} 23. Bd2 {[%clk 0:01:56]}  Rxa3 {[%clk 0:01:34]} 24. bxa3 {[%clk 0:01:54]}  Ne4 {[%clk 0:01:26]} 25. Qa2 {[%clk 0:01:53]}  Nxd2 {[%clk 0:01:25]} 26. Qxd2 {[%clk 0:01:52]}  Nc3 {[%clk 0:01:20]} 27. Qxd6 {[%clk 0:01:50]}  Nxb5 {[%clk 0:01:17]} 28. Qxc5 {[%clk 0:01:49]}  Nc3 {[%clk 0:01:10]} 29. Re7 {[%clk 0:01:45]}  Qb1+ {[%clk 0:01:07]} 30. Kh2 {[%clk 0:01:45]}  Qc2 {[%clk 0:01:00]} 31. Ng5 {[%clk 0:01:36]}  Qb2 {[%clk 0:00:31]} 32. Rxf7 {[%clk 0:01:27]}  Rxf7 {[%clk 0:00:28]} 33. Bxf7+ {[%clk 0:01:25]}  Kh8 {[%clk 0:00:26]} 34. Qc8+ {[%clk 0:01:23]}  Bf8 {[%clk 0:00:21]} 35. Qxf8# {[%clk 0:01:21]} 1-0


[Site "https://www.chess.com"]

[Event "Titled Tuesday Blitz December 27 Early 2022"]
[White "Delorme, Alban"]
[Black "Kazancev, Valerij M"]
[WhiteFideId "623636"]
[BlackFideId "4179609"]
[WhiteElo "2298"]
[BlackElo "2313"]
[Result "0-1"]
[Round "10"]
[TimeControl "180+2"]
[Date "2022.12.27"]
[WhiteClock "0:00:21"]
[BlackClock "0:00:44"]

1. e4 {[%clk 0:03:00]}  c5 {[%clk 0:02:56]} 2. Nf3 {[%clk 0:03:01]}  d6 {[%clk 0:02:56]} 3. d4 {[%clk 0:03:01]}  cxd4 {[%clk 0:02:57]} 4. Nxd4 {[%clk 0:03:02]}  Nf6 {[%clk 0:02:57]} 5. Nc3 {[%clk 0:03:01]}  a6 {[%clk 0:02:58]} 6. Bg5 {[%clk 0:02:58]}  e6 {[%clk 0:02:58]} 7. f4 {[%clk 0:02:58]}  b5 {[%clk 0:02:58]} 8. e5 {[%clk 0:02:55]}  dxe5 {[%clk 0:02:59]} 9. fxe5 {[%clk 0:02:56]}  Qc7 {[%clk 0:03:00]} 10. exf6 {[%clk 0:02:56]}  Qe5+ {[%clk 0:03:00]} 11. Be2 {[%clk 0:02:56]}  Qxg5 {[%clk 0:03:00]} 12. O-O {[%clk 0:02:53]}  Ra7 {[%clk 0:03:01]} 13. Ne4 {[%clk 0:02:49]}  Qe5 {[%clk 0:03:00]} 14. Bf3 {[%clk 0:02:46]}  Rd7 {[%clk 0:03:00]} 15. c3 {[%clk 0:02:46]}  gxf6 {[%clk 0:02:53]} 16. Qc2 {[%clk 0:02:22]}  f5 {[%clk 0:02:37]} 17. Rae1 {[%clk 0:02:09]}  fxe4 {[%clk 0:02:36]} 18. Rxe4 {[%clk 0:02:10]}  Qc5 {[%clk 0:02:28]} 19. Kh1 {[%clk 0:01:57]}  Bb7 {[%clk 0:02:10]} 20. Nxe6 {[%clk 0:01:42]}  fxe6 {[%clk 0:02:11]} 21. Rxe6+ {[%clk 0:01:41]}  Kd8 {[%clk 0:02:11]} 22. Bxb7 {[%clk 0:01:37]}  Rxb7 {[%clk 0:02:09]} 23. Qe4 {[%clk 0:01:37]}  Re7 {[%clk 0:01:55]} 24. Rd1+ {[%clk 0:01:26]}  Kc8 {[%clk 0:01:55]} 25. b4 {[%clk 0:01:09]}  Qh5 {[%clk 0:01:29]} 26. Rc6+ {[%clk 0:00:56]}  Rc7 {[%clk 0:01:16]} 27. Qe6+ {[%clk 0:00:51]}  Kb7 {[%clk 0:01:11]} 28. Rb6+ {[%clk 0:00:37]}  Ka7 {[%clk 0:01:11]} 29. Rd8 {[%clk 0:00:21]}  Be7 {[%clk 0:00:44]} 0-1


[Site "https://www.chess.com"]

[Event "Titled Tuesday Blitz December 27 Early 2022"]
[White "Estrada Nieto, Julian"]
[Black "Guha, Eshan"]
[WhiteFideId "5101018"]
[BlackFideId "30958628"]
[WhiteElo "2215"]
[BlackElo "2071"]
[Result "0-1"]
[Round "10"]
[TimeControl "180+2"]
[Date "2022.12.27"]
[WhiteClock "0:00:02"]
[BlackClock "0:00:18"]

1. e4 {[%clk 0:03:00]}  c6 {[%clk 0:03:00]} 2. d4 {[%clk 0:03:00]}  d5 {[%clk 0:03:01]} 3. Nc3 {[%clk 0:03:00]}  dxe4 {[%clk 0:03:01]} 4. Nxe4 {[%clk 0:03:01]}  Nf6 {[%clk 0:03:01]} 5. Nxf6+ {[%clk 0:03:01]}  exf6 {[%clk 0:03:02]} 6. c3 {[%clk 0:03:01]}  Bd6 {[%clk 0:03:02]} 7. Bd3 {[%clk 0:03:02]}  O-O {[%clk 0:03:02]} 8. Ne2 {[%clk 0:03:03]}  Re8 {[%clk 0:03:03]} 9. Qc2 {[%clk 0:03:03]}  h5 {[%clk 0:03:02]} 10. h3 {[%clk 0:03:01]}  Nd7 {[%clk 0:03:01]} 11. O-O {[%clk 0:02:58]}  Nf8 {[%clk 0:03:00]} 12. Bd2 {[%clk 0:02:57]}  h4 {[%clk 0:03:00]} 13. Rae1 {[%clk 0:02:55]}  Be6 {[%clk 0:03:00]} 14. c4 {[%clk 0:02:52]}  Rc8 {[%clk 0:02:59]} 15. b3 {[%clk 0:02:49]}  b5 {[%clk 0:02:40]} 16. Kh1 {[%clk 0:02:49]}  Bb8 {[%clk 0:02:23]} 17. Ng1 {[%clk 0:02:46]}  Qxd4 {[%clk 0:02:16]} 18. Nf3 {[%clk 0:02:43]}  Qd6 {[%clk 0:02:15]} 19. Be4 {[%clk 0:02:16]}  bxc4 {[%clk 0:02:12]} 20. bxc4 {[%clk 0:02:16]}  Qd7 {[%clk 0:02:05]} 21. Ng1 {[%clk 0:02:01]}  Ng6 {[%clk 0:01:53]} 22. Bc1 {[%clk 0:01:42]}  Qc7 {[%clk 0:01:41]} 23. f4 {[%clk 0:01:38]}  Ne7 {[%clk 0:01:11]} 24. Bd3 {[%clk 0:01:25]}  g6 {[%clk 0:00:44]} 25. Qf2 {[%clk 0:01:23]}  Nf5 {[%clk 0:00:44]} 26. Bxf5 {[%clk 0:01:20]}  Bxf5 {[%clk 0:00:44]} 27. Qxh4 {[%clk 0:01:13]}  Qd6 {[%clk 0:00:41]} 28. Bb2 {[%clk 0:01:02]}  Kg7 {[%clk 0:00:38]} 29. Rxe8 {[%clk 0:00:57]}  Rxe8 {[%clk 0:00:39]} 30. Qf2 {[%clk 0:00:39]}  Re4 {[%clk 0:00:29]} 31. Ne2 {[%clk 0:00:36]}  Rxc4 {[%clk 0:00:23]} 32. Nd4 {[%clk 0:00:30]}  Be4 {[%clk 0:00:20]} 33. Rd1 {[%clk 0:00:26]}  c5 {[%clk 0:00:19]} 34. Nf5+ {[%clk 0:00:25]}  Bxf5 {[%clk 0:00:19]} 35. Rxd6 {[%clk 0:00:25]}  Bxd6 {[%clk 0:00:20]} 36. g3 {[%clk 0:00:14]}  Be4+ {[%clk 0:00:18]} 37. Kg1 {[%clk 0:00:13]}  Rc2 {[%clk 0:00:18]} 38. h4 {[%clk 0:00:09]}  Rxf2 {[%clk 0:00:18]} 39. Kxf2 {[%clk 0:00:10]}  Be7 {[%clk 0:00:15]} 40. Ke3 {[%clk 0:00:10]}  Bf5 {[%clk 0:00:15]} 41. Bc3 {[%clk 0:00:10]}  Kf8 {[%clk 0:00:15]} 42. Kf3 {[%clk 0:00:10]}  Ke8 {[%clk 0:00:15]} 43. g4 {[%clk 0:00:10]}  Be6 {[%clk 0:00:16]} 44. a3 {[%clk 0:00:09]}  Kd7 {[%clk 0:00:16]} 45. Ke4 {[%clk 0:00:08]}  f5+ {[%clk 0:00:16]} 46. gxf5 {[%clk 0:00:07]}  Bxf5+ {[%clk 0:00:17]} 47. Kf3 {[%clk 0:00:07]}  Bxh4 {[%clk 0:00:17]} 48. Be5 {[%clk 0:00:07]}  Kc6 {[%clk 0:00:17]} 49. Ke3 {[%clk 0:00:07]}  Kb5 {[%clk 0:00:17]} 50. Kd2 {[%clk 0:00:06]}  Ka4 {[%clk 0:00:18]} 51. Bd6 {[%clk 0:00:06]}  c4 {[%clk 0:00:17]} 52. Kc3 {[%clk 0:00:06]}  Bd3 {[%clk 0:00:18]} 53. Bb4 {[%clk 0:00:05]}  Bg3 {[%clk 0:00:18]} 54. Bd6 {[%clk 0:00:05]}  g5 {[%clk 0:00:18]} 55. Kd4 {[%clk 0:00:04]}  Bxf4 {[%clk 0:00:18]} 56. Bc5 {[%clk 0:00:03]}  g4 {[%clk 0:00:18]} 57. Kc3 {[%clk 0:00:02]}  g3 {[%clk 0:00:18]} 0-1


[Site "https://www.chess.com"]

[Event "Titled Tuesday Blitz December 27 Early 2022"]
[White "Fernandez Siles, Luis"]
[Black "Altman, Joshua"]
[WhiteFideId "2209420"]
[BlackFideId "426210"]
[WhiteElo "2218"]
[BlackElo "2120"]
[Result "1-0"]
[Round "10"]
[TimeControl "180+2"]
[Date "2022.12.27"]
[WhiteClock "0:00:02"]
[BlackClock "0:00:01"]

1. d4 {[%clk 0:03:00]}  Nf6 {[%clk 0:02:59]} 2. c4 {[%clk 0:03:00]}  e6 {[%clk 0:02:59]} 3. Nf3 {[%clk 0:02:59]}  b6 {[%clk 0:02:59]} 4. a3 {[%clk 0:02:59]}  Bb7 {[%clk 0:02:59]} 5. Nc3 {[%clk 0:02:59]}  d5 {[%clk 0:02:59]} 6. cxd5 {[%clk 0:02:59]}  Nxd5 {[%clk 0:02:59]} 7. Qc2 {[%clk 0:03:00]}  Be7 {[%clk 0:02:57]} 8. e4 {[%clk 0:03:00]}  Nxc3 {[%clk 0:02:58]} 9. bxc3 {[%clk 0:03:00]}  O-O {[%clk 0:02:58]} 10. Bd3 {[%clk 0:02:59]}  c5 {[%clk 0:02:59]} 11. O-O {[%clk 0:02:56]}  Nd7 {[%clk 0:02:58]} 12. Qe2 {[%clk 0:02:51]}  Qc7 {[%clk 0:02:58]} 13. Bd2 {[%clk 0:02:43]}  Rfd8 {[%clk 0:02:54]} 14. h4 {[%clk 0:02:41]}  Rac8 {[%clk 0:02:46]} 15. h5 {[%clk 0:02:40]}  Bf8 {[%clk 0:02:38]} 16. e5 {[%clk 0:02:15]}  Be7 {[%clk 0:02:25]} 17. Qe3 {[%clk 0:02:06]}  Nf8 {[%clk 0:02:14]} 18. Qf4 {[%clk 0:01:53]}  h6 {[%clk 0:02:08]} 19. Qg4 {[%clk 0:01:46]}  Kh8 {[%clk 0:01:59]} 20. Qf4 {[%clk 0:01:36]}  Kg8 {[%clk 0:01:46]} 21. Qg4 {[%clk 0:01:34]}  Bxf3 {[%clk 0:01:22]} 22. gxf3 {[%clk 0:01:22]}  Kh8 {[%clk 0:01:15]} 23. Kh1 {[%clk 0:01:10]}  Nh7 {[%clk 0:01:09]} 24. Rg1 {[%clk 0:00:58]}  Rg8 {[%clk 0:01:00]} 25. Qe4 {[%clk 0:00:45]}  Nf8 {[%clk 0:00:59]} 26. Bxh6 {[%clk 0:00:31]}  f5 {[%clk 0:00:15]} 27. exf6 {[%clk 0:00:23]}  Bxf6 {[%clk 0:00:15]} 28. Be3 {[%clk 0:00:18]}  Qf7 {[%clk 0:00:14]} 29. Rg6 {[%clk 0:00:17]}  Nh7 {[%clk 0:00:03]} 30. Rag1 {[%clk 0:00:14]}  Nf8 {[%clk 0:00:03]} 31. h6 {[%clk 0:00:10]}  Nxg6 {[%clk 0:00:03]} 32. Rxg6 {[%clk 0:00:07]}  gxh6 {[%clk 0:00:02]} 33. Rxf6 {[%clk 0:00:07]}  Qg7 {[%clk 0:00:03]} 34. Rxh6+ {[%clk 0:00:02]}  Qxh6+ {[%clk 0:00:03]} 35. Bxh6 {[%clk 0:00:03]}  e5 {[%clk 0:00:01]} 36. Qh7# {[%clk 0:00:02]} 1-0


[Site "https://www.chess.com"]

[Event "Titled Tuesday Blitz December 27 Early 2022"]
[White "Flis, Pawel"]
[Black "Koridze, Lile"]
[WhiteFideId "1112864"]
[BlackFideId "13612514"]
[WhiteElo "1879"]
[BlackElo "2191"]
[Result "0-1"]
[Round "10"]
[TimeControl "180+2"]
[Date "2022.12.27"]
[WhiteClock "0:00:01"]
[BlackClock "0:00:36"]

1. e4 {[%clk 0:02:54]}  c5 {[%clk 0:03:00]} 2. Nf3 {[%clk 0:02:53]}  d6 {[%clk 0:03:00]} 3. d4 {[%clk 0:02:53]}  cxd4 {[%clk 0:03:00]} 4. Nxd4 {[%clk 0:02:53]}  Nf6 {[%clk 0:03:01]} 5. Nc3 {[%clk 0:02:53]}  a6 {[%clk 0:03:00]} 6. a4 {[%clk 0:02:53]}  Nc6 {[%clk 0:02:58]} 7. Be2 {[%clk 0:02:51]}  e5 {[%clk 0:02:56]} 8. Nf3 {[%clk 0:02:47]}  Be7 {[%clk 0:02:56]} 9. Bg5 {[%clk 0:02:43]}  O-O {[%clk 0:02:56]} 10. O-O {[%clk 0:02:40]}  Be6 {[%clk 0:02:55]} 11. Bxf6 {[%clk 0:02:40]}  Bxf6 {[%clk 0:02:55]} 12. Nd5 {[%clk 0:02:39]}  Be7 {[%clk 0:02:48]} 13. Bc4 {[%clk 0:02:37]}  Rc8 {[%clk 0:02:43]} 14. Ba2 {[%clk 0:02:35]}  Kh8 {[%clk 0:02:35]} 15. c3 {[%clk 0:02:27]}  Bg5 {[%clk 0:02:30]} 16. Qd3 {[%clk 0:02:14]}  Bh6 {[%clk 0:02:25]} 17. Rad1 {[%clk 0:02:09]}  f5 {[%clk 0:02:24]} 18. exf5 {[%clk 0:02:07]}  Bxf5 {[%clk 0:02:23]} 19. Qe2 {[%clk 0:01:45]}  Qe8 {[%clk 0:02:13]} 20. Nb6 {[%clk 0:01:35]}  Rd8 {[%clk 0:02:12]} 21. Bd5 {[%clk 0:01:27]}  Bg4 {[%clk 0:02:00]} 22. h3 {[%clk 0:01:24]}  Bh5 {[%clk 0:01:59]} 23. g4 {[%clk 0:01:19]}  Bg6 {[%clk 0:01:50]} 24. Nh4 {[%clk 0:01:17]}  Bg5 {[%clk 0:01:24]} 25. Nxg6+ {[%clk 0:01:14]}  Qxg6 {[%clk 0:01:21]} 26. Be4 {[%clk 0:01:12]}  Qh6 {[%clk 0:01:18]} 27. Kg2 {[%clk 0:01:12]}  Ne7 {[%clk 0:01:14]} 28. Bxb7 {[%clk 0:00:55]}  Ng6 {[%clk 0:01:12]} 29. Nd5 {[%clk 0:00:50]}  Nh4+ {[%clk 0:00:45]} 30. Kh1 {[%clk 0:00:35]}  Rf3 {[%clk 0:00:42]} 31. Kh2 {[%clk 0:00:21]}  Bf4+ {[%clk 0:00:42]} 32. Nxf4 {[%clk 0:00:15]}  Qxf4+ {[%clk 0:00:40]} 33. Kg1 {[%clk 0:00:15]}  Rxh3 {[%clk 0:00:38]} 34. Rfe1 {[%clk 0:00:01]}  Nf3+ {[%clk 0:00:36]} 0-1


[Site "https://www.chess.com"]

[Event "Titled Tuesday Blitz December 27 Early 2022"]
[White "Garcia Almaguer, Juan Manuel"]
[Black "Osiecki, Stanislaw"]
[WhiteFideId "5110491"]
[BlackFideId "1102990"]
[WhiteElo "2090"]
[BlackElo "2055"]
[Result "1-0"]
[Round "10"]
[TimeControl "180+2"]
[Date "2022.12.27"]
[WhiteClock "0:00:12"]
[BlackClock "0:00:05"]

1. e4 {[%clk 0:03:00]}  e6 {[%clk 0:02:59]} 2. d4 {[%clk 0:02:57]}  d5 {[%clk 0:02:59]} 3. e5 {[%clk 0:02:57]}  c5 {[%clk 0:02:59]} 4. c3 {[%clk 0:02:52]}  Nc6 {[%clk 0:02:58]} 5. Nf3 {[%clk 0:02:52]}  Qb6 {[%clk 0:02:58]} 6. Bd3 {[%clk 0:02:44]}  cxd4 {[%clk 0:02:56]} 7. cxd4 {[%clk 0:02:43]}  Nb4 {[%clk 0:02:56]} 8. O-O {[%clk 0:02:36]}  Nxd3 {[%clk 0:02:56]} 9. Qxd3 {[%clk 0:02:37]}  Bd7 {[%clk 0:02:56]} 10. Nc3 {[%clk 0:02:36]}  Bb4 {[%clk 0:02:56]} 11. a3 {[%clk 0:02:32]}  Bxc3 {[%clk 0:02:55]} 12. bxc3 {[%clk 0:02:32]}  Bb5 {[%clk 0:02:54]} 13. Qc2 {[%clk 0:02:21]}  Bxf1 {[%clk 0:02:53]} 14. Kxf1 {[%clk 0:02:22]}  Rc8 {[%clk 0:02:52]} 15. Bd2 {[%clk 0:02:17]}  Ne7 {[%clk 0:02:50]} 16. h4 {[%clk 0:02:16]}  h6 {[%clk 0:02:44]} 17. g4 {[%clk 0:02:12]}  O-O {[%clk 0:02:42]} 18. Kg2 {[%clk 0:02:11]}  Nc6 {[%clk 0:02:26]} 19. Rb1 {[%clk 0:01:40]}  Qc7 {[%clk 0:02:13]} 20. Qd3 {[%clk 0:01:33]}  b6 {[%clk 0:01:59]} 21. h5 {[%clk 0:01:27]}  Ne7 {[%clk 0:01:52]} 22. g5 {[%clk 0:01:25]}  Nf5 {[%clk 0:01:49]} 23. gxh6 {[%clk 0:01:25]}  gxh6 {[%clk 0:01:49]} 24. Kh3 {[%clk 0:01:19]}  Qc4 {[%clk 0:01:45]} 25. Ne1 {[%clk 0:01:08]}  Qxd3+ {[%clk 0:01:44]} 26. Nxd3 {[%clk 0:01:09]}  Kh7 {[%clk 0:01:38]} 27. a4 {[%clk 0:01:06]}  Rc4 {[%clk 0:01:37]} 28. a5 {[%clk 0:01:06]}  bxa5 {[%clk 0:01:34]} 29. Rb7 {[%clk 0:01:06]}  Ra4 {[%clk 0:01:26]} 30. Rxa7 {[%clk 0:00:59]}  Ra2 {[%clk 0:01:26]} 31. Be1 {[%clk 0:00:57]}  Kg7 {[%clk 0:01:12]} 32. Kg4 {[%clk 0:00:34]}  Rb8 {[%clk 0:01:02]} 33. Kf3 {[%clk 0:00:33]}  Rb1 {[%clk 0:00:54]} 34. Nf4 {[%clk 0:00:18]}  Rxe1 {[%clk 0:00:20]} 35. Nxe6+ {[%clk 0:00:17]}  Kg8 {[%clk 0:00:17]} 36. Ra8+ {[%clk 0:00:17]}  Kh7 {[%clk 0:00:17]} 37. Nd8 {[%clk 0:00:15]}  Nh4+ {[%clk 0:00:12]} 38. Kg4 {[%clk 0:00:15]}  Ng2 {[%clk 0:00:10]} 39. Nxf7 {[%clk 0:00:11]}  Rxf2 {[%clk 0:00:09]} 40. Ra7 {[%clk 0:00:12]}  Kg8 {[%clk 0:00:08]} 41. Nd6 {[%clk 0:00:12]}  Ne3+ {[%clk 0:00:05]} 42. Kg3 {[%clk 0:00:12]} 1-0


[Site "https://www.chess.com"]

[Event "Titled Tuesday Blitz December 27 Early 2022"]
[White "Gatterer, Florian"]
[Black "Bashirli, Saadat"]
[WhiteFideId "811688"]
[BlackFideId "13429990"]
[WhiteElo "2170"]
[BlackElo "1571"]
[Result "1/2-1/2"]
[Round "10"]
[TimeControl "180+2"]
[Date "2022.12.27"]
[WhiteClock "0:01:30"]
[BlackClock "0:02:14"]

1. Nf3 {[%clk 0:03:00]}  d5 {[%clk 0:02:59]} 2. b3 {[%clk 0:03:00]}  Nf6 {[%clk 0:02:59]} 3. Bb2 {[%clk 0:03:00]}  Bg4 {[%clk 0:02:59]} 4. Ne5 {[%clk 0:02:59]}  Bf5 {[%clk 0:02:57]} 5. h3 {[%clk 0:02:59]}  e6 {[%clk 0:02:56]} 6. g4 {[%clk 0:02:59]}  Be4 {[%clk 0:02:52]} 7. Nf3 {[%clk 0:02:57]}  Bxf3 {[%clk 0:02:51]} 8. exf3 {[%clk 0:02:57]}  Bd6 {[%clk 0:02:47]} 9. d4 {[%clk 0:02:52]}  O-O {[%clk 0:02:44]} 10. Bd3 {[%clk 0:02:48]}  Re8 {[%clk 0:02:43]} 11. O-O {[%clk 0:02:45]}  e5 {[%clk 0:02:42]} 12. dxe5 {[%clk 0:02:36]}  Bxe5 {[%clk 0:02:41]} 13. Bxe5 {[%clk 0:02:35]}  Rxe5 {[%clk 0:02:41]} 14. f4 {[%clk 0:02:32]}  Re8 {[%clk 0:02:39]} 15. Nd2 {[%clk 0:02:32]}  Nbd7 {[%clk 0:02:36]} 16. Qf3 {[%clk 0:02:15]}  Nc5 {[%clk 0:02:34]} 17. Rfe1 {[%clk 0:02:13]}  Qd6 {[%clk 0:02:29]} 18. Kf1 {[%clk 0:01:37]}  c6 {[%clk 0:02:16]} 19. Rxe8+ {[%clk 0:01:30]}  Rxe8 {[%clk 0:02:14]} 20. Re1 {[%clk 0:01:30]} 1/2-1/2


[Site "https://www.chess.com"]

[Event "Titled Tuesday Blitz December 27 Early 2022"]
[White "Goltseva, Ekaterina"]
[Black "Forgacs, Attila Jr."]
[WhiteFideId "24173770"]
[BlackFideId "773654"]
[WhiteElo "2283"]
[BlackElo "2264"]
[Result "1-0"]
[Round "10"]
[TimeControl "180+2"]
[Date "2022.12.27"]
[WhiteClock "0:00:03"]
[BlackClock "0:00:31"]

1. Nf3 {[%clk 0:01:31]}  Nf6 {[%clk 0:02:56]} 2. b3 {[%clk 0:01:31]}  g6 {[%clk 0:02:56]} 3. Bb2 {[%clk 0:01:32]}  Bg7 {[%clk 0:02:57]} 4. e3 {[%clk 0:01:32]}  O-O {[%clk 0:02:57]} 5. d4 {[%clk 0:01:33]}  d5 {[%clk 0:02:56]} 6. c4 {[%clk 0:01:33]}  dxc4 {[%clk 0:02:54]} 7. bxc4 {[%clk 0:01:33]}  c5 {[%clk 0:02:54]} 8. d5 {[%clk 0:01:32]}  e6 {[%clk 0:02:53]} 9. dxe6 {[%clk 0:01:16]}  Bxe6 {[%clk 0:02:54]} 10. Qxd8 {[%clk 0:01:07]}  Rxd8 {[%clk 0:02:55]} 11. Nbd2 {[%clk 0:01:04]}  Nc6 {[%clk 0:02:55]} 12. Be2 {[%clk 0:01:03]}  Nb4 {[%clk 0:02:54]} 13. O-O {[%clk 0:01:03]}  Nd3 {[%clk 0:02:54]} 14. Bc3 {[%clk 0:00:53]}  Ne8 {[%clk 0:02:28]} 15. Bxg7 {[%clk 0:00:51]}  Kxg7 {[%clk 0:02:29]} 16. Rfb1 {[%clk 0:00:43]}  b6 {[%clk 0:02:26]} 17. Rb3 {[%clk 0:00:42]}  Ne5 {[%clk 0:02:15]} 18. Nxe5 {[%clk 0:00:35]}  Rxd2 {[%clk 0:02:15]} 19. Bf3 {[%clk 0:00:35]}  Rad8 {[%clk 0:02:08]} 20. Ra3 {[%clk 0:00:28]}  a5 {[%clk 0:01:57]} 21. Rb3 {[%clk 0:00:17]}  R8d6 {[%clk 0:01:26]} 22. h3 {[%clk 0:00:18]}  Nc7 {[%clk 0:01:19]} 23. Rab1 {[%clk 0:00:17]}  Rxa2 {[%clk 0:01:13]} 24. Rxb6 {[%clk 0:00:16]}  Rdd2 {[%clk 0:01:10]} 25. Rb7 {[%clk 0:00:13]}  Na6 {[%clk 0:01:03]} 26. R1b6 {[%clk 0:00:06]}  Bc8 {[%clk 0:00:37]} 27. Rxf7+ {[%clk 0:00:06]}  Kh6 {[%clk 0:00:38]} 28. Rc6 {[%clk 0:00:05]}  Rd8 {[%clk 0:00:31]} 29. Ng4+ {[%clk 0:00:04]}  Kh5 {[%clk 0:00:31]} 30. Rxh7+ {[%clk 0:00:04]}  Kg5 {[%clk 0:00:31]} 31. h4+ {[%clk 0:00:05]}  Kf5 {[%clk 0:00:31]} 32. Rf7# {[%clk 0:00:03]} 1-0


[Site "https://www.chess.com"]

[Event "Titled Tuesday Blitz December 27 Early 2022"]
[White "Guevara Sanchez, Erick Marvin"]
[Black "Larina, Maria"]
[WhiteFideId "6700136"]
[BlackFideId "24113182"]
[WhiteElo "2073"]
[BlackElo "1948"]
[Result "1-0"]
[Round "10"]
[TimeControl "180+2"]
[Date "2022.12.27"]
[WhiteClock "0:00:17"]
[BlackClock "0:00:11"]

1. e4 {[%clk 0:03:00]}  c6 {[%clk 0:02:58]} 2. d4 {[%clk 0:03:00]}  d5 {[%clk 0:02:57]} 3. e5 {[%clk 0:03:01]}  c5 {[%clk 0:02:57]} 4. dxc5 {[%clk 0:03:00]}  Nc6 {[%clk 0:02:57]} 5. Nf3 {[%clk 0:03:00]}  Bg4 {[%clk 0:02:57]} 6. Bb5 {[%clk 0:02:57]}  e6 {[%clk 0:02:38]} 7. Be3 {[%clk 0:02:54]}  Qa5+ {[%clk 0:02:32]} 8. Nc3 {[%clk 0:02:53]}  O-O-O {[%clk 0:02:24]} 9. Bxc6 {[%clk 0:02:52]}  bxc6 {[%clk 0:02:23]} 10. Qd4 {[%clk 0:02:51]}  Bxf3 {[%clk 0:02:22]} 11. gxf3 {[%clk 0:02:51]}  Ne7 {[%clk 0:02:19]} 12. b4 {[%clk 0:02:50]}  Qc7 {[%clk 0:02:13]} 13. b5 {[%clk 0:02:41]}  Nf5 {[%clk 0:02:09]} 14. Qa4 {[%clk 0:02:26]}  d4 {[%clk 0:01:55]} 15. Bg5 {[%clk 0:01:40]}  f6 {[%clk 0:01:41]} 16. bxc6 {[%clk 0:01:22]}  Bxc5 {[%clk 0:01:18]} 17. Qa6+ {[%clk 0:01:15]}  Kb8 {[%clk 0:01:18]} 18. Ne4 {[%clk 0:01:00]}  Bb6 {[%clk 0:01:05]} 19. exf6 {[%clk 0:00:55]}  gxf6 {[%clk 0:00:54]} 20. Bxf6 {[%clk 0:00:50]}  Qxc6 {[%clk 0:00:42]} 21. Bxh8 {[%clk 0:00:42]}  Rxh8 {[%clk 0:00:38]} 22. a4 {[%clk 0:00:40]}  d3 {[%clk 0:00:19]} 23. cxd3 {[%clk 0:00:20]}  Bxf2+ {[%clk 0:00:18]} 24. Kxf2 {[%clk 0:00:18]}  Qxa6 {[%clk 0:00:19]} 25. Rab1+ {[%clk 0:00:18]}  Kc7 {[%clk 0:00:17]} 26. Rhc1+ {[%clk 0:00:17]}  Kd8 {[%clk 0:00:12]} 27. Rb8+ {[%clk 0:00:17]}  Ke7 {[%clk 0:00:11]} 28. Rc7# {[%clk 0:00:17]} 1-0


[Site "https://www.chess.com"]